bitfinex/quotes_BTCUSD_20240821
["timestamp","ask_amount","ask_price","bid_price","bid_amount"]
[1724248711958,0.367359,59900.0,59890.0,0.04902319]
[1724248712165,0.333895,59899.0,59891.0,0.04902319]
[1724248712377,0.333895,59899.0,59888.0,0.0735725]
[1724248712378,0.16400298,59903.0,59892.0,0.04902319]
[1724248712595,0.08535,59913.0,59885.0,0.42422084]
[1724248712596,0.166975,59889.0,59888.0,0.04902319]
[1724248712814,0.166975,59889.0,59879.0,0.1988]
[1724248712815,0.166986,59885.0,59884.0,0.04902319]
[1724248713034,0.33398,59884.0,59879.0,0.04902319]
[1724248713249,0.0164003,59902.0,59877.0,0.04902319]
[1724248713250,0.167006,59878.0,59877.0,0.04902319]
[1724248713461,0.83503,59878.0,59877.0,0.04902319]
[1724248713647,0.83503,59878.0,59874.0,0.0735725]
[1724248713648,0.501043,59875.0,59874.0,0.0735725]
[1724248713899,0.000815,59908.0,59906.0,0.30562117]
[1724248714138,0.49229154,59917.0,59907.0,0.00082117]
[1724248714352,0.066878,59928.0,59912.0,0.00082117]
[1724248714568,0.333758,59924.0,59911.0,0.04894393]
[1724248714796,0.00824,59932.0,59912.0,0.36543217]
[1724248715007,0.00824,59932.0,59912.0,0.1957]
[1724248715220,0.333736,59928.0,59912.0,0.19652117]
[1724248715457,0.00824,59932.0,59912.0,0.62429915]
[1724248715681,0.333757,59924.0,59914.0,0.04885962]
[1724248715903,0.333758,59924.0,59914.0,0.002]
[1724248716151,0.333758,59924.0,59914.0,0.001]
[1724248716365,0.333758,59924.0,59911.0,0.07328854]
[1724248716366,0.166911,59912.0,59911.0,0.07328854]
[1724248716575,0.834555,59912.0,59911.0,0.07328854]
[1724248717225,1.41583548,59912.0,59911.0,0.07328854]
[1724248717908,1.33237998,59912.0,59911.0,0.07328854]
[1724248719872,1.74020198,59912.0,59911.0,0.07328854]
[1724248720331,1.74020198,59912.0,59911.0,0.01070694]
[1724248720765,1.40637998,59912.0,59911.0,0.01070694]
[1724248721196,1.90418076,59912.0,59911.0,0.01070694]
[1724248721431,1.74020198,59912.0,59911.0,0.01070694]
[1724248724485,0.166964,59893.0,59892.0,0.001]
[1724248724693,0.166964,59893.0,59891.0,0.003]
[1724248724907,0.166968,59892.0,59886.0,0.1906]
[1724248725359,0.16697,59891.0,59890.0,0.003]
[1724248725568,0.33387,59904.0,59886.0,0.1906]
[1724248725798,0.333902,59898.0,59886.0,0.1906]
[1724248726015,0.16400298,59903.0,59886.0,0.1906]
[1724248726016,0.333937,59892.0,59886.0,0.1906]
[1724248726238,0.0187003,59910.0,59887.0,0.2983]
[1724248726462,0.166977,59889.0,59887.0,0.2983]
[1724248726723,0.333878,59902.0,59901.0,0.003]
[1724248726945,0.166973,59890.0,59887.0,0.2983]
[1724248727167,0.166978,59888.0,59887.0,0.2983]
[1724248727816,0.166978,59888.0,59853.0,0.04885382]
[1724248727817,0.333947,59890.0,59878.0,0.3067]
[1724248728020,0.333852,59907.0,59886.0,0.003]
[1724248728021,0.333966,59887.0,59886.0,0.003]
[1724248728234,0.15825183,59909.0,59878.0,0.3067]
[1724248728235,0.333907,59897.0,59878.0,0.3067]
[1724248728438,0.333976,59885.0,59878.0,0.3067]
[1724248728647,0.16400298,59896.0,59878.0,0.3067]
[1724248728863,0.167003,59879.0,59878.0,0.3067]
[1724248729074,0.333926,59894.0,59878.0,0.3067]
[1724248729300,0.167003,59879.0,59878.0,0.3067]
[1724248729520,0.501009,59879.0,59878.0,0.3067]
[1724248730198,0.835015,59879.0,59878.0,0.3067]
[1724248730442,0.334046,59872.0,59869.0,0.0008965]
[1724248730662,0.501085,59870.0,59869.0,0.0008965]
[1724248730899,0.835142,59870.0,59869.0,0.0008965]
[1724248731349,1.169199,59870.0,59869.0,0.0008965]
[1724248731816,1.33320198,59870.0,59869.0,0.0008965]
[1724248732468,1.66725898,59870.0,59869.0,0.0008965]
[1724248732681,1.69025898,59870.0,59869.0,0.0008965]
[1724248732890,1.85423776,59870.0,59869.0,0.0008965]
[1724248734040,1.33320198,59870.0,59869.0,0.0008965]
[1724248734252,1.66725898,59870.0,59869.0,0.0008965]
[1724248734467,1.69025898,59870.0,59869.0,0.0008965]
[1724248734722,1.71646066,59870.0,59869.0,0.0008965]
[1724248734973,0.501244,59851.0,59850.0,0.2882965]
[1724248735188,0.16400298,59851.0,59838.0,0.1999]
[1724248735411,0.16400298,59851.0,59829.0,0.04908223]
[1724248735412,0.835477,59846.0,59829.0,0.1999]
[1724248735645,0.04920302,59870.0,59849.0,0.001]
[1724248735846,0.334153,59853.0,59849.0,0.001]
[1724248736081,0.1899,59883.0,59859.0,0.001]
[1724248736291,0.1899,59883.0,59849.0,0.001]
[1724248736292,0.334168,59850.0,59849.0,0.001]
[1724248736503,0.167084,59850.0,59849.0,0.001]
[1724248736717,0.19328623,59850.0,59849.0,0.001]
[1724248736964,0.19328623,59850.0,59846.0,0.1999]
[1724248736965,0.167092,59847.0,59846.0,0.1999]
[1724248737178,0.334091,59864.0,59846.0,0.1999]
[1724248737179,0.2735,59878.0,59846.0,0.1999]
[1724248737409,0.16400298,59876.0,59846.0,0.1999]
[1724248737633,0.16400298,59876.0,59846.0,0.2009]
[1724248737855,0.2735,59878.0,59846.0,0.1199]
[1724248737856,0.1902,59875.0,59846.0,0.1199]
[1724248738092,0.501277,59847.0,59846.0,0.1199]
[1724248738310,0.1902,59875.0,59845.0,0.3118965]
[1724248738311,0.334144,59855.0,59845.0,0.3118965]
[1724248738520,0.16400298,59855.0,59845.0,0.3118965]
[1724248738727,0.501286,59846.0,59845.0,0.3118965]
[1724248738940,0.167095,59846.0,59845.0,0.3118965]
[1724248739152,0.501286,59846.0,59845.0,0.3118965]
[1724248739374,0.835477,59846.0,59845.0,0.0008965]
[1724248740493,0.5848337,59846.0,59845.0,0.0008965]
[1724248740731,1.08302768,59846.0,59845.0,0.0008965]
[1724248740943,1.41721868,59846.0,59845.0,0.0008965]
[1724248741397,0.835477,59846.0,59845.0,0.0008965]
[1724248741615,0.434092,59864.0,59845.0,0.0008965]
[1724248741616,0.2735,59868.0,59846.0,0.331]
[1724248741827,0.16400298,59867.0,59846.0,0.331]
[1724248742277,0.167092,59847.0,59846.0,0.331]
[1724248742704,0.167092,59847.0,59845.0,0.0008965]
[1724248742705,0.167095,59846.0,59845.0,0.0008965]
[1724248742920,0.66528898,59846.0,59845.0,0.0008965]
[1724248743138,1.44737988,59846.0,59845.0,0.0008965]
[1724248743355,0.1983,59871.0,59845.0,0.3485965]
[1724248743570,0.167074,59854.0,59847.0,0.001]
[1724248743788,0.334093,59864.0,59848.0,0.1978]
[1724248744000,0.26400298,59870.0,59848.0,0.1978]
[1724248744001,0.167077,59853.0,59848.0,0.1978]
[1724248744209,0.167079,59852.0,59848.0,0.1978]
[1724248744418,0.501261,59849.0,59848.0,0.1978]
[1724248744638,0.501261,59849.0,59845.0,0.3485965]
[1724248744639,0.167095,59846.0,59845.0,0.3485965]
[1724248744847,0.835477,59846.0,59845.0,0.3485965]
[1724248745055,0.835477,59846.0,59845.0,0.0008965]
[1724248745056,1.169668,59846.0,59845.0,0.0008965]
[1724248745270,1.16946704,59846.0,59845.0,0.0008965]
[1724248745489,1.28643384,59846.0,59845.0,0.0008965]
[1724248745708,1.31264195,59846.0,59845.0,0.0008965]
[1724248745965,0.19310215,59846.0,59845.0,0.0008965]
[1724248746200,0.02620811,59846.0,59845.0,2.0008965]
[1724248746430,0.02620811,59846.0,59845.0,2.72249948]
[1724248746650,0.4228,59885.0,59845.0,2.72249948]
[1724248746651,0.49229154,59883.0,59862.0,0.3541]
[1724248746868,0.21323213,59882.0,59866.0,0.001]
[1724248747122,0.21289983,59890.0,59870.0,0.1907]
[1724248747123,0.167019,59874.0,59870.0,0.1907]
[1724248747335,0.167791,59892.0,59885.0,0.001]
[1724248747548,0.000823,59892.0,59886.0,0.001]
[1724248747766,0.333947,59890.0,59883.0,0.001]
[1724248747988,0.000823,59892.0,59886.0,0.001]
[1724248748205,0.000823,59892.0,59890.0,0.001]
[1724248748417,0.000823,59892.0,59889.0,0.3312]
[1724248748645,0.166972,59890.0,59889.0,0.3302]
[1724248748859,0.500917,59890.0,59889.0,0.3302]
[1724248749081,0.834862,59890.0,59889.0,0.3302]
[1724248749519,0.166997,59881.0,59871.0,0.001]
[1724248749729,0.83517,59868.0,59867.0,0.1841]
[1724248749973,0.83517,59868.0,59845.0,2.0008965]
[1724248749974,0.16400298,59880.0,59857.0,0.3561]
[1724248750184,0.16400298,59880.0,59861.0,0.49229154]
[1724248750399,0.167061,59859.0,59857.0,0.3571]
[1724248750612,0.0394003,59879.0,59857.0,0.3561]
[1724248750817,0.001,59887.0,59886.0,1.52309672]
[1724248750818,1.168867,59887.0,59886.0,1.52309672]
[1724248751039,1.33286998,59887.0,59886.0,1.52309672]
[1724248751255,0.000823,59892.0,59886.0,1.52309672]
[1724248751477,0.000823,59892.0,59888.0,0.001]
[1724248751697,0.000823,59892.0,59890.0,0.001]
[1724248751920,0.000823,59892.0,59889.0,0.16500298]
[1724248752133,0.000823,59892.0,59886.0,1.52309672]
[1724248752598,0.000823,59892.0,59887.0,0.001]
[1724248752599,0.16697,59891.0,59887.0,0.001]
[1724248752826,0.166973,59890.0,59886.0,1.52309672]
[1724248753047,0.000823,59892.0,59886.0,1.52309672]
[1724248753266,0.000823,59892.0,59887.0,0.16400298]
[1724248753473,0.000823,59892.0,59889.0,0.001]
[1724248753682,0.000823,59892.0,59890.0,0.16400298]
[1724248754108,0.000823,59892.0,59888.0,0.5407]
[1724248754329,0.000823,59892.0,59886.0,1.52309672]
[1724248754330,0.02618629,59903.0,59893.0,0.5554]
[1724248754544,0.02618629,59903.0,59902.0,1.194495]
[1724248754751,0.0002,59919.0,59911.0,0.5643]
[1724248755211,0.0002,59919.0,59918.0,0.167894]
[1724248755433,0.00824,59932.0,59918.0,0.167894]
[1724248755434,0.00824,59932.0,59931.0,0.532658]
[1724248755636,0.05,59941.0,59933.0,0.501557]
[1724248755851,0.05,59941.0,59933.0,0.51480298]
[1724248756294,0.05,59941.0,59933.0,0.68165498]
[1724248756516,0.05,59941.0,59933.0,0.51480298]
[1724248756723,0.00824,59952.0,59950.0,0.354]
[1724248757418,0.00824,59952.0,59950.0,0.51800298]
[1724248757626,0.00824,59952.0,59951.0,0.16500298]
[1724248757834,0.00824,59952.0,59951.0,0.16400298]
[1724248758038,0.00824,59952.0,59950.0,0.354]
[1724248758249,0.00824,59952.0,59951.0,0.16400298]
[1724248758467,0.00824,59952.0,59951.0,0.33080498]
[1724248758726,0.0002,59979.0,59964.0,0.3395]
[1724248759148,0.166745,59972.0,59964.0,0.3395]
[1724248759376,0.33365,59979.0,59964.0,0.3395]
[1724248759377,0.0002,59979.0,59964.0,0.3395]
[1724248759588,0.33349,59972.0,59964.0,0.3395]
[1724248759804,0.0002,59979.0,59964.0,0.3395]
[1724248760044,0.0002,59979.0,59950.0,0.3469]
[1724248760045,0.333501,59970.0,59950.0,0.3469]
[1724248760269,0.001,59975.0,59950.0,0.3469]
[1724248760270,0.16400298,59969.0,59950.0,0.3469]
[1724248760528,0.16400298,59969.0,59950.0,0.51090298]
[1724248760734,0.189,59978.0,59959.0,0.001]
[1724248760934,0.189,59978.0,59946.0,0.166815]
[1724248760935,0.0002,59979.0,59960.0,0.16500298]
[1724248761190,0.333462,59977.0,59967.0,0.001]
[1724248761395,0.0002,59979.0,59972.0,0.001]
[1724248761396,0.166729,59978.0,59972.0,0.001]
[1724248761603,0.0002,59979.0,59973.0,0.001]
[1724248761814,0.0002,59979.0,59975.0,0.001]
[1724248762031,0.166736,59975.0,59974.0,0.3527]
[1724248762499,0.83368,59975.0,59974.0,0.3527]
[1724248762915,0.0002,59979.0,59974.0,0.3527]
[1724248763138,0.0002,59979.0,59974.0,0.3537]
[1724248763384,0.333511,59968.0,59967.0,0.3304]
[1724248763618,0.0002,59979.0,59967.0,0.3302]
[1724248763821,0.0002,59979.0,59969.0,0.16400298]
[1724248764250,0.0002,59979.0,59968.0,0.1998]
[1724248764461,0.0002,59979.0,59969.0,0.001]
[1724248764684,0.0002,59979.0,59970.0,0.001]
[1724248764897,0.0002,59979.0,59973.0,0.001]
[1724248765109,0.166732,59977.0,59974.0,0.16400298]
[1724248765336,0.333651,59979.0,59974.0,0.16500298]
[1724248765337,0.166734,59976.0,59974.0,0.16500298]
[1724248765557,0.166731,59977.0,59974.0,0.16400298]
[1724248765782,0.166729,59978.0,59968.0,0.2008]
[1724248766004,0.0002,59979.0,59975.0,0.16400298]
[1724248766222,0.02554621,59986.0,59985.0,0.001]
[1724248766677,0.49329771,60000.0,59993.0,0.001]
[1724248766678,0.333543,59999.0,59993.0,0.001]
[1724248766886,0.333543,59999.0,59993.0,0.3573]
[1724248766887,0.0002,59999.0,59993.0,0.3573]
[1724248767110,0.0002,59999.0,59993.0,0.52130298]
[1724248767776,0.0002,59999.0,59993.0,0.52030298]
[1724248767999,0.33336,59996.0,59986.0,0.3598]
[1724248768201,0.333539,59999.0,59990.0,0.001]
[1724248768428,0.166688,59992.0,59991.0,0.3598]
[1724248768631,0.1118358,60013.0,59992.0,0.1979]
[1724248768632,0.0118358,60013.0,59992.0,0.1979]
[1724248768847,0.33347171,60012.0,59997.0,0.166672]
[1724248769062,0.333274,60011.0,60006.0,0.3598]
[1724248769273,0.333274,60011.0,60005.0,0.001]
[1724248769274,0.333314,60004.0,59996.0,0.3598]
[1724248769493,0.00020171,60012.0,59998.0,0.001]
[1724248769711,0.00020171,60012.0,60009.0,0.001]
[1724248769929,0.00020171,60012.0,60009.0,0.16500298]
[1724248770177,0.00020171,60012.0,60009.0,0.52480298]
[1724248770395,0.00020171,60012.0,60009.0,1.55590998]
[1724248770603,0.00020171,60012.0,60009.0,0.93778666]
[1724248770814,0.00020171,60012.0,60009.0,1.27106966]
[1724248770999,0.00020171,60012.0,60009.0,1.22262698]
[1724248771206,0.00020171,60012.0,60009.0,1.88919298]
[1724248771462,0.00020171,60012.0,60009.0,1.93763566]
[1724248771675,0.0002,60019.0,60018.0,0.866049]
[1724248771878,0.0047479,60019.0,60018.0,1.56208498]
[1724248772088,0.0047479,60019.0,60018.0,1.94376066]
[1724248772299,0.33307396,60055.0,60018.0,1.94376066]
[1724248772300,0.02612607,60038.0,60028.0,0.3633]
[1724248772505,4.096e-05,60055.0,60051.0,0.499575]
[1724248772734,4.096e-05,60055.0,60051.0,1.12592798]
[1724248772958,4.096e-05,60055.0,60051.0,1.17687066]
[1724248773168,4.096e-05,60055.0,60051.0,1.50992066]
[1724248773380,0.08609292,60079.0,60078.0,0.16745]
[1724248773590,0.08609292,60079.0,60078.0,0.68000298]
[1724248773795,0.332904,60078.0,60069.0,0.3351]
[1724248773997,0.11220712,60079.0,60056.0,0.3351]
[1724248774211,0.11220712,60079.0,60057.0,0.16400298]
[1724248774212,0.27865412,60079.0,60057.0,0.16400298]
[1724248774417,0.10720712,60079.0,60062.0,0.16400298]
[1724248774628,0.166507,60058.0,60056.0,0.3351]
[1724248774834,0.10720712,60079.0,60060.0,0.001]
[1724248775047,0.10720712,60079.0,60061.0,0.16400298]
[1724248775268,0.10720712,60079.0,60056.0,0.3351]
[1724248775269,0.16400298,60078.0,60056.0,0.3351]
[1724248775479,0.10720712,60079.0,60062.0,0.001]
[1724248775480,0.08109292,60079.0,60062.0,0.001]
[1724248775708,0.166489,60064.0,60060.0,0.001]
[1724248775899,0.332946,60070.0,60056.0,0.3351]
[1724248776111,0.332991,60062.0,60049.0,0.341]
[1724248776345,0.02611022,60073.0,60050.0,0.16733294]
[1724248776627,0.65629452,60072.0,60050.0,0.16400298]
[1724248776855,0.65629452,60072.0,60048.0,0.001]
[1724248776856,0.1963,60071.0,60048.0,0.001]
[1724248777057,0.1963,60071.0,60051.0,0.16400298]
[1724248777058,0.2963,60071.0,60051.0,0.16400298]
[1724248777472,0.2963,60071.0,60052.0,0.001]
[1724248777675,0.2963,60071.0,60053.0,0.16400298]
[1724248777676,0.166516,60054.0,60053.0,0.16400298]
[1724248777960,0.2963,60071.0,60037.0,0.3609]
[1724248778162,0.40340445,60087.0,60009.0,0.84354712]
[1724248778163,0.00040445,60087.0,60086.0,0.201]
[1724248778368,0.0002,60119.0,60098.0,1.186072]
[1724248778577,0.0002,60119.0,60098.0,0.3541]
[1724248778800,0.332875,60119.0,60098.0,0.3541]
[1724248779018,0.332712,60112.0,60098.0,0.3541]
[1724248779235,0.0002,60119.0,60098.0,0.16400298]
[1724248779459,0.332699,60115.0,60098.0,0.16400298]
[1724248779672,0.166592,60099.0,60098.0,0.16400298]
[1724248779888,0.0002,60099.0,60098.0,0.16400298]
[1724248780104,0.166439,60082.0,60081.0,0.3615]
[1724248780312,0.0002,60099.0,60083.0,0.49229154]
[1724248780521,0.0002,60099.0,60084.0,0.16400298]
[1724248780738,0.0002,60099.0,60061.0,0.332989]
[1724248780739,0.0002,60099.0,60098.0,0.563194]
[1724248780947,0.0002,60099.0,60098.0,0.92210298]
[1724248781164,0.0002,60099.0,60098.0,0.72210298]
[1724248781374,0.0002,60099.0,60098.0,1.25128598]
[1724248781584,0.0002,60099.0,60098.0,1.67508598]
[1724248781801,0.0002,60099.0,60098.0,2.00787498]
[1724248782320,0.0002,60099.0,60098.0,1.25228598]
[1724248782537,0.006664,60146.0,60125.0,0.2487]
[1724248782763,0.49229154,60139.0,60138.0,0.2]
[1724248783004,0.0137281,60149.0,60148.0,0.2487]
[1724248783225,0.0117281,60149.0,60148.0,0.2487]
[1724248783435,0.0185217,60149.0,60148.0,0.4362]
[1724248783875,0.0185217,60149.0,60148.0,0.79745898]
[1724248784091,0.0185217,60149.0,60148.0,0.83020298]
[1724248784304,0.0185217,60149.0,60148.0,0.96645898]
[1724248784531,0.00018235,60149.0,60148.0,1.73348498]
[1724248784766,0.010473,60178.0,60177.0,0.698528]
[1724248784999,0.010473,60178.0,60177.0,0.3337]
[1724248785225,0.00200892,60197.0,60177.0,0.3337]
[1724248785226,0.00100892,60197.0,60177.0,0.3337]
[1724248785473,0.00100892,60197.0,60181.0,0.001]
[1724248785688,0.00100892,60197.0,60182.0,0.7561]
[1724248785905,0.00100892,60197.0,60195.0,0.16400298]
[1724248786124,0.00100892,60197.0,60196.0,0.16400298]
[1724248786335,0.02341979,60206.0,60200.0,0.005]
[1724248786796,1.09051063,60201.0,60200.0,0.005]
[1724248787008,1.09051063,60201.0,60160.0,0.49229154]
[1724248787009,0.498561,60173.0,60160.0,0.49229154]
[1724248787224,1.495683,60173.0,60160.0,0.49229154]
[1724248787436,1.676383,60173.0,60160.0,0.49229154]
[1724248787700,1.676383,60173.0,60151.0,0.335]
[1724248787701,1.776383,60173.0,60151.0,0.335]
[1724248787932,1.776383,60173.0,60138.0,0.555]
[1724248788142,0.166278,60140.0,60119.0,0.2]
[1724248788357,0.498835,60140.0,60127.0,0.3695]
[1724248788559,0.3347,60153.0,60118.0,0.3695]
[1724248788560,0.1995,60143.0,60118.0,0.3695]
[1724248788774,0.498984,60122.0,60118.0,0.3695]
[1724248789000,0.498984,60122.0,60119.0,0.001]
[1724248789206,0.498984,60122.0,60111.0,0.1857]
[1724248789207,0.3347,60136.0,60111.0,0.0002]
[1724248789423,0.499068,60112.0,60111.0,0.0002]
[1724248789672,0.83178,60112.0,60111.0,0.0002]
[1724248790140,0.166356,60112.0,60111.0,0.16420298]
[1724248790389,0.83178,60112.0,60111.0,0.0002]
[1724248790607,0.499068,60112.0,60111.0,0.16420298]
[1724248790816,0.499068,60112.0,60111.0,0.0002]
[1724248791031,1.164492,60112.0,60111.0,0.0002]
[1724248791243,0.83178,60112.0,60111.0,0.0002]
[1724248791660,1.164492,60112.0,60111.0,0.0002]
[1724248792299,1.497204,60112.0,60111.0,0.0002]
[1724248792511,1.82518576,60112.0,60111.0,0.0002]
[1724248792727,1.68420698,60112.0,60111.0,0.0002]
[1724248792935,1.68420698,60112.0,60076.0,0.3385]
[1724248792936,0.001,60111.0,60076.0,0.3385]
[1724248793151,1.356257,60092.0,60071.0,0.0002]
[1724248793370,1.68908,60092.0,60071.0,0.0002]
[1724248793588,1.68908,60092.0,60078.0,0.001]
[1724248794207,1.68908,60092.0,60071.0,0.0002]
[1724248794208,2.18590598,60092.0,60071.0,0.0002]
[1724248794417,0.49922795,60072.0,60071.0,0.0002]
[1724248794638,1.19466095,60072.0,60071.0,0.0002]
[1724248794847,1.52759395,60072.0,60071.0,0.0002]
[1724248795072,2.37270871,60072.0,60071.0,0.0002]
[1724248795291,2.33272993,60072.0,60071.0,0.0002]
[1724248795507,0.83261,60052.0,60051.0,0.0002]
[1724248795739,1.528154,60052.0,60051.0,0.0002]
[1724248795968,0.332875,60083.0,60051.0,0.16420298]
[1724248796187,0.166507,60058.0,60052.0,0.16733363]
[1724248796410,0.332995,60061.0,60052.0,0.16400298]
[1724248796626,0.332943,60071.0,60052.0,0.16400298]
[1724248796861,0.166522,60052.0,60051.0,0.0002]
[1724248797084,0.499566,60052.0,60051.0,0.0002]
[1724248797300,1.165654,60052.0,60051.0,0.0002]
[1724248797517,0.83261,60052.0,60051.0,0.0002]
[1724248798177,1.13575398,60052.0,60051.0,0.0002]
[1724248798401,1.35365698,60052.0,60051.0,0.0002]
[1724248798606,1.35365698,60052.0,59994.0,0.49329154]
[1724248798607,0.166577,60032.0,60013.0,0.695858]
[1724248798849,0.28700298,60051.0,60013.0,0.3626]
[1724248799113,0.499732,60032.0,60013.0,0.3626]
[1724248799535,0.832887,60032.0,60013.0,0.3626]
[1724248799991,0.166577,60032.0,60022.0,0.001]
[1724248800207,0.832887,60032.0,60022.0,0.001]
[1724248800442,0.1934,60054.0,60037.0,0.001]
[1724248800688,0.166525,60051.0,60038.0,0.16400298]
[1724248800896,0.40933213,60064.0,60038.0,0.16400298]
[1724248801112,0.1961,60064.0,60042.0,0.001]
[1724248801326,0.49229154,60081.0,60062.0,0.001]
[1724248801534,0.49229154,60081.0,60080.0,0.001]
[1724248801746,0.49229154,60081.0,60070.0,0.16400298]
[1724248801968,0.49229154,60081.0,60061.0,0.706389]
[1724248801969,0.02610542,60077.0,60063.0,0.166489]
[1724248802178,0.02610542,60077.0,60062.0,0.16400298]
[1724248802179,0.332802,60096.0,60069.0,0.001]
[1724248802397,0.1831,60101.0,60061.0,0.3734]
[1724248802398,0.166442,60081.0,60070.0,0.16400298]
[1724248802617,0.332853,60087.0,60061.0,0.3734]
[1724248802618,0.001,60087.0,60061.0,0.3734]
[1724248802829,0.4999,60104.0,60048.0,0.03]
[1724248802830,0.1953,60083.0,60052.0,0.3721]
[1724248803045,0.001,60079.0,60050.0,0.001]
[1724248803308,0.3606,60072.0,60036.0,0.3721]
[1724248803519,0.3606,60072.0,60051.0,0.65629452]
[1724248803774,0.3606,60072.0,60042.0,0.001]
[1724248804061,0.333055,60051.0,60036.0,0.86439154]
[1724248804325,0.1831,60070.0,60031.0,0.0002]
[1724248804326,0.16400298,60050.0,60031.0,0.0002]
[1724248804571,0.1877,60049.0,60031.0,0.0002]
[1724248804793,0.166577,60032.0,60031.0,0.0002]
[1724248804999,0.499732,60032.0,60031.0,0.0002]
[1724248805207,0.955887,60032.0,60031.0,0.0002]
[1724248805419,0.95576854,60032.0,60031.0,0.0002]
[1724248805639,1.11977152,60032.0,60031.0,0.0002]
[1724248805843,1.78708152,60032.0,60031.0,0.0002]
[1724248806074,1.64872652,60032.0,60031.0,0.0002]
[1724248806499,1.12856854,60032.0,60031.0,0.0002]
[1724248806702,0.003,60048.0,60031.0,0.0002]
[1724248806703,0.1888,60052.0,60035.0,0.001]
[1724248806914,0.4,60077.0,60031.0,0.16420298]
[1724248806915,0.65881654,60051.0,60042.0,0.001]
[1724248807140,0.49229154,60050.0,60036.0,0.16400298]
[1724248807376,0.16400298,60050.0,60031.0,0.0002]
[1724248807579,0.1888,60063.0,60032.0,0.65629452]
[1724248807580,0.166536,60047.0,60032.0,0.65629452]
[1724248807791,0.1888,60063.0,60032.0,0.16400298]
[1724248807792,0.53920298,60062.0,60032.0,0.16400298]
[1724248808000,0.49229154,60057.0,60032.0,0.16500298]
[1724248808223,0.49229154,60057.0,60031.0,0.0002]
[1724248808224,0.16400298,60056.0,60031.0,0.0002]
[1724248808488,0.3461,60069.0,60041.0,0.3687]
[1724248808704,0.401,60100.0,60069.0,0.001]
[1724248808705,0.3727,60095.0,60069.0,0.001]
[1724248808920,0.3727,60095.0,60066.0,0.03]
[1724248808921,0.49229154,60089.0,60075.0,0.166457]
[1724248809131,0.1943,60099.0,60078.0,0.166449]
[1724248809340,0.1943,60099.0,60083.0,0.001]
[1724248809341,0.332791,60098.0,60083.0,0.001]
[1724248809552,0.332791,60098.0,60071.0,0.16400298]
[1724248809553,0.166402,60096.0,60086.0,0.001]
[1724248809805,0.3727,60107.0,60086.0,0.3667]
[1724248810040,0.066679,60117.0,60092.0,0.001]
[1724248810268,0.066679,60117.0,60086.0,0.3667]
[1724248810269,0.332786,60099.0,60086.0,0.53070298]
[1724248810479,0.3777,60116.0,60078.0,0.001]
[1724248810480,0.166418,60090.0,60078.0,0.001]
[1724248810692,0.3777,60116.0,60075.0,0.3481]
[1724248810693,0.166403,60096.0,60084.0,0.001]
[1724248810949,0.001,60110.0,60079.0,0.16400298]
[1724248811187,0.02609605,60111.0,60075.0,0.3481]
[1724248811188,0.001,60094.0,60077.0,0.04777367]
[1724248811425,0.3839,60093.0,60056.0,0.56395204]
[1724248811634,0.166447,60079.0,60078.0,0.49229154]
[1724248811849,0.332843,60089.0,60080.0,0.001]
[1724248812064,0.05,60090.0,60082.0,0.002]
[1724248812294,0.05,60090.0,60078.0,0.16400298]
[1724248812494,0.05,60090.0,60068.0,0.04777367]
[1724248812719,0.05,60090.0,60072.0,0.49229154]
[1724248812924,0.332867,60084.0,60069.0,0.16400298]
[1724248813152,0.21400298,60090.0,60067.0,0.3678]
[1724248813153,0.05,60090.0,60086.0,0.001]
[1724248813360,0.05,60090.0,60087.0,0.16400298]
[1724248813617,0.3556,60112.0,60087.0,0.16400298]
[1724248813618,0.5356,60112.0,60096.0,0.002]
[1724248813826,0.02609764,60109.0,60105.0,0.5477]
[1724248814036,0.02609764,60109.0,60106.0,0.16400298]
[1724248814246,0.02609764,60109.0,60094.0,0.032]
[1724248814247,0.348,60115.0,60094.0,0.07202817]
[1724248814461,0.348,60115.0,60083.0,0.09602693]
[1724248814462,0.332819,60093.0,60083.0,0.09602693]
[1724248814684,0.02609538,60111.0,60075.0,0.49229154]
[1724248814685,0.332911,60076.0,60075.0,0.49229154]
[1724248814906,0.348,60087.0,60064.0,0.07202817]
[1724248815115,0.166486,60065.0,60064.0,0.07202817]
[1724248815331,0.16400298,60086.0,60056.0,0.49229154]
[1724248815332,0.16400298,60086.0,60056.0,0.49429154]
[1724248815546,0.166492,60063.0,60053.0,0.004]
[1724248815767,0.1926503,60085.0,60051.0,0.357]
[1724248815985,0.332944,60071.0,60054.0,0.004]
[1724248816276,0.123,60085.0,60061.0,0.004]
[1724248816487,0.123,60085.0,60072.0,0.002]
[1724248816488,0.16644,60082.0,60072.0,0.002]
[1724248816712,0.21060904,60088.0,60062.0,0.00332937]
[1724248816713,0.02610904,60088.0,60078.0,0.002]
[1724248816920,0.332859,60086.0,60073.0,0.357]
[1724248817145,0.02610904,60088.0,60063.0,0.16400298]
[1724248817146,0.16400298,60085.0,60063.0,0.16400298]
[1724248817356,0.499474,60063.0,60062.0,0.000902]
[1724248817594,0.832457,60063.0,60062.0,0.000902]
[1724248817868,1.32944298,60063.0,60062.0,0.000902]
[1724248818080,1.35244298,60063.0,60062.0,0.000902]
[1724248818545,1.32944298,60063.0,60062.0,0.000902]
[1724248818787,1.35244298,60063.0,60062.0,0.000902]
[1724248819197,1.16544,60063.0,60062.0,0.000902]
[1724248819418,0.02610914,60073.0,60062.0,0.000902]
[1724248819419,0.02610914,60073.0,60062.0,0.16490498]
[1724248819637,0.166446,60080.0,60064.0,0.002]
[1724248819861,0.332859,60086.0,60068.0,0.002]
[1724248820077,0.332859,60086.0,60063.0,0.3542]
[1724248820078,0.16400298,60085.0,60063.0,0.3542]
[1724248820290,0.166476,60069.0,60063.0,0.3542]
[1724248820500,0.332897,60079.0,60064.0,0.16400298]
[1724248820711,0.3793,60077.0,60062.0,0.000902]